[Event "NJSK 2021 Jeugd B"]
[Site "Almelo, Netherlands"]
[Date "2021.08.01"]
[Round "1.1"]
[White "Pham, Khoi"]
[Black "Kien, Clovis"]
[Result "1-0"]
[TimeControl "90min/40moves + 30min + 30sec/move"]
[WhiteElo "2128"]
[BlackElo "1683"]

1. d4 {[%clk 01:30:28]} {[%emt 00:00:31]} Nf6 {[%clk 01:30:51]} {[%emt
00:00:10]} 2. c4 {[%clk 01:30:49]} {[%emt 00:00:09]} g6 {[%clk 01:31:18]}
{[%emt 00:00:04]} 3. Nc3 {[%clk 01:31:12]} {[%emt 00:00:06]} Bg7 {[%clk
01:31:42]} {[%emt 00:00:05]} 4. e4 {[%clk 01:31:26]} {[%emt 00:00:17]} d6
{[%clk 01:32:08]} {[%emt 00:00:03]} 5. h3 {[%clk 01:31:36]} {[%emt 00:00:20]}
O-O {[%clk 01:32:10]} {[%emt 00:00:29]} 6. Be3 {[%clk 01:31:40]} {[%emt
00:00:26]} e5 {[%clk 01:31:36]} {[%emt 00:01:04]} 7. d5 {[%clk 01:32:01]}
{[%emt 00:00:09]} a5 {[%clk 01:31:09]} {[%emt 00:00:57]} 8. g4 {[%clk
01:32:06]} {[%emt 00:00:25]} Na6 {[%clk 01:31:20]} {[%emt 00:00:20]} 9. Nge2
{[%clk 01:32:22]} {[%emt 00:00:13]} h5 {[%clk 01:30:05]} {[%emt 00:01:45]} 10.
f3 {[%clk 01:30:21]} {[%emt 00:02:30]} Nc5 {[%clk 01:24:42]} {[%emt 00:05:54]}
11. Bg5 {[%clk 01:23:34]} {[%emt 00:07:17]} Qe8 {[%clk 01:18:28]} {[%emt
00:06:44]} 12. Qd2 {[%clk 01:15:41]} {[%emt 00:12:39]} Nh7 {[%clk 01:10:09]}
{[%emt 00:04:34]} 13. gxh5 {[%clk 01:07:53]} {[%emt 00:08:17]} Nxg5 {[%clk
00:51:46]} {[%emt 00:18:53]} 14. Qxg5 {[%clk 01:08:16]} {[%emt 00:00:07]} Nd3+
{[%emt 00:01:24]} 15. Kd2 {[%clk 01:08:06]} {[%emt 00:00:39]} Nxb2 {[%clk
00:50:03]} {[%emt 00:01:20]} 16. Nc1 {[%clk 01:06:04]} {[%emt 00:02:32]} Kh7
{[%clk 00:45:10]} {[%emt 00:05:22]} 17. Kc2 {[%clk 01:03:45]} {[%emt 00:02:50]}
Na4 {[%clk 00:42:14]} {[%emt 00:03:27]} 18. Nb5 {[%clk 00:58:54]} {[%emt
00:05:20]} Bd7 {[%clk 00:28:02]} {[%emt 00:14:42]} 19. Nxc7 {[%clk 00:57:04]}
{[%emt 00:02:21]} Qd8 {[%clk 00:28:17]} {[%emt 00:00:14]} 20. Qxd8 {[%clk
00:57:13]} {[%emt 00:00:21]} Raxd8 {[%clk 00:28:42]} {[%emt 00:00:05]} 21. Rb1
{[%clk 00:56:43]} {[%emt 00:01:00]} Nc5 {[%clk 00:27:44]} {[%emt 00:01:28]} 22.
Nd3 {[%clk 00:55:40]} {[%emt 00:01:33]} Ba4+ {[%clk 00:24:07]} {[%emt
00:04:07]} 23. Kc3 {[%clk 00:55:53]} {[%emt 00:00:17]} Rd7 {[%clk 00:24:09]}
{[%emt 00:00:28]} 24. Nxc5 {[%clk 00:53:06]} {[%emt 00:03:18]} dxc5 {[%clk
00:24:31]} {[%emt 00:00:07]} 25. hxg6+ {[%clk 00:52:39]} {[%emt 00:00:56]} fxg6
{[%clk 00:24:55]} {[%emt 00:00:06]} 26. Ne6 {[%clk 00:53:02]} {[%emt 00:00:08]}
Rxf3+ {[%clk 00:22:45]} {[%emt 00:02:40]} 27. Bd3 {[%clk 00:51:55]} {[%emt
00:01:37]} Rf2 {[%clk 00:20:13]} {[%emt 00:03:02]} 28. Nxc5 {[%clk 00:50:43]}
{[%emt 00:01:42]} Bh6 {[%clk 00:19:26]} {[%emt 00:01:16]} 29. Nxa4 {[%clk
00:50:18]} {[%emt 00:00:56]} Rxa2 {[%clk 00:18:54]} {[%emt 00:01:01]} 30. Bc2
{[%clk 00:49:40]} {[%emt 00:01:09]} Rf7 {[%clk 00:19:07]} {[%emt 00:00:16]} 31.
Kb3 {[%clk 00:49:34]} {[%emt 00:00:37]} 1-0

[Event "NJSK 2021 Jeugd B"]
[Site "Almelo, Netherlands"]
[Date "2021.08.01"]
[Round "1.2"]
[White "Goudriaan, Rafael"]
[Black "Slagboom, Leandro"]
[Result "0-1"]
[TimeControl "90min/40moves + 30min + 30sec/move"]
[WhiteElo "1677"]
[BlackElo "1996"]

1. e4 {[%clk 01:30:56]} {[%emt 00:00:03]} c5 {[%clk 01:30:57]} {[%emt
00:00:05]} 2. Nc3 {[%clk 01:31:20]} {[%emt 00:00:06]} Nc6 {[%clk 01:31:21]}
{[%emt 00:00:06]} 3. f4 {[%clk 01:31:44]} {[%emt 00:00:05]} g6 {[%clk
01:31:39]} {[%emt 00:00:12]} 4. Nf3 {[%clk 01:32:09]} {[%emt 00:00:05]} Bg7
{[%clk 01:32:00]} {[%emt 00:00:09]} 5. d3 {[%clk 01:32:11]} {[%emt 00:00:29]}
d6 {[%clk 01:31:58]} {[%emt 00:00:32]} 6. Be2 {[%clk 01:32:33]} {[%emt
00:00:07]} Nf6 {[%clk 01:31:34]} {[%emt 00:00:54]} 7. O-O {[%clk 01:32:53]}
{[%emt 00:00:11]} Bg4 {[%clk 01:29:29]} {[%emt 00:02:35]} 8. h3 {[%clk
01:32:39]} {[%emt 00:00:43]} Bxf3 {[%clk 01:29:50]} {[%emt 00:00:10]} 9. Bxf3
{[%clk 01:32:57]} {[%emt 00:00:11]} O-O {[%clk 01:29:23]} {[%emt 00:00:57]} 10.
Be3 {[%clk 01:29:36]} {[%emt 00:03:49]} Nd4 {[%clk 01:26:33]} {[%emt 00:03:22]}
11. Ne2 {[%clk 01:25:52]} {[%emt 00:04:14]} Qb6 {[%clk 01:21:04]} {[%emt
00:05:59]} 12. Rb1 {[%clk 01:23:51]} {[%emt 00:02:32]} e5 {[%clk 01:15:11]}
{[%emt 00:06:23]} 13. c3 {[%clk 01:21:20]} {[%emt 00:03:01]} Nxe2+ {[%clk
01:12:19]} {[%emt 00:03:22]} 14. Qxe2 {[%emt 00:02:16]} Nd7 {[%clk 01:01:18]}
{[%emt 00:10:24]} 15. g4 {[%clk 01:15:52]} {[%emt 00:05:19]} exf4 {[%clk
00:59:18]} {[%emt 00:02:30]} 16. Bxf4 {[%clk 01:16:16]} {[%emt 00:00:06]} Rfe8
{[%clk 00:57:24]} {[%emt 00:02:24]} 17. Bg2 {[%clk 01:12:33]} {[%emt 00:04:12]}
d5 {[%clk 00:51:10]} {[%emt 00:06:44]} 18. Qf2 {[%clk 01:11:32]} {[%emt
00:01:31]} d4 {[%clk 00:48:44]} {[%emt 00:02:57]} 19. c4 {[%clk 01:10:57]}
{[%emt 00:01:05]} Be5 {[%clk 00:45:36]} {[%emt 00:03:37]} 20. Bg5 {[%clk
01:08:11]} {[%emt 00:03:14]} Qe6 {[%clk 00:43:00]} {[%emt 00:03:09]} 21. b4
{[%clk 01:07:38]} {[%emt 00:01:03]} cxb4 {[%clk 00:39:14]} {[%emt 00:04:16]} 22.
Rxb4 {[%clk 01:06:07]} {[%emt 00:02:01]} b6 {[%clk 00:38:32]} {[%emt 00:01:12]}
23. Rb5 {[%clk 01:04:48]} {[%emt 00:01:46]} Nc5 {[%clk 00:37:34]} {[%emt
00:01:30]} 24. Qf3 {[%clk 00:59:21]} {[%emt 00:05:57]} Rab8 {[%clk 00:34:40]}
{[%emt 00:03:24]} 25. Rb2 {[%clk 00:56:55]} {[%emt 00:02:54]} Rb7 {[%clk
00:33:22]} {[%emt 00:01:51]} 26. Rff2 {[%clk 00:52:41]} {[%emt 00:04:43]} Rd7
{[%clk 00:29:52]} {[%emt 00:04:00]} 27. Bf1 {[%clk 00:52:28]} {[%emt 00:00:43]}
Kg7 {[%clk 00:27:56]} {[%emt 00:02:27]} 28. h4 {[%clk 00:49:00]} {[%emt
00:03:58]} h6 {[%clk 00:23:39]} {[%emt 00:04:47]} 29. Bd2 {[%clk 00:48:34]}
{[%emt 00:00:55]} Rc7 {[%clk 00:22:08]} {[%emt 00:02:02]} 30. Bh3 {[%clk
00:47:00]} {[%emt 00:02:04]} Qe7 {[%clk 00:19:48]} {[%emt 00:02:50]} 31. g5
{[%clk 00:46:19]} {[%emt 00:01:10]} hxg5 {[%clk 00:18:51]} {[%emt 00:01:28]} 32.
Bxg5 {[%clk 00:45:29]} {[%emt 00:01:20]} f6 {[%clk 00:19:06]} {[%emt 00:00:15]}
33. Bd2 {[%clk 00:45:12]} {[%emt 00:00:47]} Rh8 {[%clk 00:17:41]} {[%emt
00:01:55]} 34. Qg4 {[%clk 00:39:33]} {[%emt 00:06:08]} Nxd3 {[%clk 00:14:07]}
{[%emt 00:04:05]} 35. Rg2 {[%clk 00:40:00]} {[%emt 00:00:03]} Qe8 {[%clk
00:13:35]} {[%emt 00:01:02]} 36. Rb3 {[%clk 00:38:38]} {[%emt 00:01:49]} Nc5
{[%clk 00:12:51]} {[%emt 00:01:16]} 37. Rf3 {[%clk 00:38:44]} {[%emt 00:00:22]}
Kf8 {[%clk 00:11:34]} {[%emt 00:01:50]} 38. Bf4 {[%clk 00:37:02]} {[%emt
00:02:11]} Bxf4 {[%clk 00:08:19]} {[%emt 00:03:46]} 39. Qxf4 {[%clk 00:36:54]}
{[%emt 00:00:38]} Rf7 {[%clk 00:04:05]} {[%emt 00:04:44]} 40. Rxg6 {[%clk
00:36:11]} Qe5 {[%clk 00:01:45]} {[%emt 00:04:03]} 41. Rxf6 {[%clk 00:34:46]}
{[%emt 00:01:54]} Qxf6 {[%clk 00:00:32]} {[%emt 00:01:43]} 42. Qxf6 {[%clk
00:34:29]} {[%emt 00:00:48]} Rxf6 {[%clk 00:00:52]} {[%emt 00:00:10]} 43. Rxf6+
{[%clk 00:34:51]} {[%emt 00:00:07]} Ke7 {[%clk 00:00:48]} {[%emt 00:00:34]} 44.
Rf4 {[%clk 00:35:05]} {[%emt 00:00:17]} Kd6 {[%clk 00:28:12]} {[%emt 00:03:06]}
45. Bf1 {[%clk 01:01:53]} {[%emt 00:03:41]} Ke5 {[%clk 00:27:00]} {[%emt
00:01:42]} 46. Rg4 {[%clk 01:00:32]} {[%emt 00:01:51]} d3 {[%clk 00:26:11]}
{[%emt 00:01:20]} 47. Bg2 {[%clk 00:59:12]} {[%emt 00:01:50]} d2 {[%clk
00:16:11]} {[%emt 00:10:29]} 48. Bf3 {[%clk 00:58:34]} {[%emt 00:01:07]} Rd8
{[%clk 00:14:40]} {[%emt 00:02:03]} 49. Rg5+ {[%clk 00:57:33]} {[%emt
00:01:30]} Kf4 {[%clk 00:12:05]} {[%emt 00:03:06]} 50. Bd1 {[%clk 00:57:38]}
{[%emt 00:00:23]} Nxe4 {[%clk 00:11:54]} {[%emt 00:00:42]} 51. Rd5 {[%clk
00:57:47]} {[%emt 00:00:19]} Rxd5 {[%clk 00:04:25]} {[%emt 00:08:02]} 52. cxd5
{[%clk 00:58:14]} {[%emt 00:00:02]} Nc3 {[%clk 00:04:38]} {[%emt 00:00:17]} 53.
Bb3 {[%clk 00:57:27]} {[%emt 00:01:17]} Nxd5 {[%clk 00:04:09]} {[%emt
00:01:00]} 54. h5 {[%clk 00:56:13]} {[%emt 00:01:44]} Kg5 {[%clk 00:04:26]}
{[%emt 00:00:13]} 55. Kf2 {[%clk 00:54:09]} {[%emt 00:02:33]} Nc3 {[%clk
00:04:41]} {[%emt 00:00:16]} 56. h6 {[%clk 00:53:46]} {[%emt 00:00:53]} Kxh6
{[%clk 00:04:59]} {[%emt 00:00:12]} 0-1

[Event "NJSK 2021 Jeugd B"]
[Site "Almelo, Netherlands"]
[Date "2021.08.01"]
[Round "1.3"]
[White "Boghossian, Wahe"]
[Black "Arnold, Lorin"]
[Result "1-0"]
[TimeControl "90min/40moves + 30min + 30sec/move"]
[WhiteElo "1915"]
[BlackElo "1651"]

1. e4 {[%clk 01:30:57]} {[%emt 00:00:01]} e5 {[%clk 01:27:26]} {[%emt
00:03:34]} 2. Nf3 {[%clk 01:31:22]} {[%emt 00:00:07]} d6 {[%clk 01:26:53]}
{[%emt 00:01:03]} 3. d4 {[%clk 01:26:59]} {[%emt 00:04:52]} Bg4 {[%clk
01:23:34]} {[%emt 00:03:48]} 4. dxe5 {[%clk 01:13:08]} {[%emt 00:14:22]} Bxf3
{[%clk 01:20:46]} {[%emt 00:03:17]} 5. Qxf3 {[%clk 01:11:15]} {[%emt 00:02:24]}
dxe5 {[%clk 01:19:53]} {[%emt 00:01:23]} 6. Bc4 {[%emt 00:07:48]} Nf6 {[%clk
01:14:33]} {[%emt 00:03:27]} 7. Qb3 {[%clk 01:03:32]} {[%emt 00:03:17]} Bc5
{[%clk 01:10:30]} {[%emt 00:04:34]} 8. Bxf7+ {[%clk 00:25:57]} {[%emt
00:38:05]} Kf8 {[%clk 01:09:47]} {[%emt 00:01:14]} 9. O-O {[%clk 00:17:41]}
{[%emt 00:08:46]} Nc6 {[%clk 01:05:42]} {[%emt 00:04:35]} 10. Bd5 {[%clk
00:07:04]} {[%emt 00:11:07]} Nd4 {[%clk 00:43:45]} {[%emt 00:22:25]} 11. Qd3
{[%clk 00:06:57]} {[%emt 00:00:37]} c6 {[%clk 00:39:31]} {[%emt 00:04:45]} 12.
Bb3 {[%clk 00:06:58]} {[%emt 00:00:28]} Nxb3 {[%clk 00:37:24]} {[%emt
00:02:38]} 13. Qxb3 {[%clk 00:01:37]} {[%emt 00:05:51]} Nxe4 {[%clk 00:35:42]}
{[%emt 00:02:12]} 14. Be3 {[%clk 00:02:04]} {[%emt 00:00:03]} b6 {[%clk
00:33:25]} {[%emt 00:02:48]} 15. Nc3 {[%clk 00:02:06]} {[%emt 00:00:27]} Nxc3
{[%clk 00:30:18]} {[%emt 00:03:38]} 16. Bxc5+ {[%clk 00:02:15]} {[%emt
00:00:20]} bxc5 {[%clk 00:30:42]} {[%emt 00:00:06]} 17. Qxc3 {[%clk 00:02:38]}
{[%emt 00:00:06]} Qe7 {[%emt 00:05:25]} 18. Rae1 {[%clk 00:01:36]} Re8 {[%clk
00:27:21]} {[%emt 00:00:29]} 19. Re4 {[%clk 00:01:39]} {[%emt 00:00:27]} Qd6
{[%clk 00:25:40]} {[%emt 00:02:12]} 20. f4 {[%clk 00:01:34]} {[%emt 00:00:35]}
Qd5 {[%clk 00:25:11]} {[%emt 00:00:58]} 21. fxe5+ {[%clk 00:01:16]} {[%emt
00:00:48]} Ke7 {[%clk 00:25:39]} {[%emt 00:00:02]} 22. Ref4 {[%clk 00:01:05]}
{[%emt 00:00:40]} Rhf8 {[%clk 00:26:03]} {[%emt 00:00:06]} 23. Qf3 {[%clk
00:00:34]} {[%emt 00:01:02]} Rxf4 {[%emt 00:01:19]} 24. Qxf4 {[%clk 00:00:51]}
{[%emt 00:00:13]} Qd4+ {[%clk 00:25:44]} 25. Qf2 {[%clk 00:00:33]} {[%emt
00:00:48]} Rf8 {[%clk 00:25:39]} {[%emt 00:00:35]} 26. Qxd4 {[%clk 00:00:52]}
{[%emt 00:00:11]} Rxf1+ {[%clk 00:26:08]} {[%emt 00:00:01]} 27. Kxf1 {[%clk
00:01:21]} {[%emt 00:00:02]} cxd4 {[%clk 00:26:35]} {[%emt 00:00:02]} 28. Ke2
{[%clk 00:01:08]} {[%emt 00:00:43]} Ke6 {[%clk 00:27:04]} 29. Kd3 {[%clk
00:00:57]} {[%emt 00:00:40]} Kxe5 {[%clk 00:27:16]} {[%emt 00:00:19]} 30. Kc4
{[%clk 00:00:37]} {[%emt 00:00:51]} Ke4 {[%clk 00:27:08]} {[%emt 00:00:38]} 31.
b4 {[%clk 00:00:36]} {[%emt 00:00:31]} Ke3 {[%clk 00:25:34]} {[%emt 00:02:03]}
32. a4 {[%clk 00:00:36]} {[%emt 00:00:30]} h5 {[%clk 00:23:16]} {[%emt
00:02:48]} 33. Kc5 {[%clk 00:00:36]} {[%emt 00:00:30]} Kf2 {[%clk 00:19:45]}
{[%emt 00:04:02]} 34. Kxc6 {[%clk 00:00:49]} {[%emt 00:00:16]} Kxg2 {[%clk
00:18:05]} {[%emt 00:02:10]} 35. h4 {[%clk 00:00:32]} {[%emt 00:00:48]} Kg3
{[%clk 00:16:57]} {[%emt 00:01:37]} 36. b5 {[%clk 00:00:38]} {[%emt 00:00:25]}
Kxh4 {[%clk 00:16:21]} {[%emt 00:01:05]} 37. a5 {[%clk 00:01:06]} {[%emt
00:00:02]} g5 {[%clk 00:16:15]} {[%emt 00:00:36]} 38. b6 {[%clk 00:01:27]}
{[%emt 00:00:09]} axb6 {[%clk 00:16:44]} 39. axb6 {[%clk 00:01:31]} {[%emt
00:00:27]} g4 {[%clk 00:16:04]} {[%emt 00:01:09]} 40. b7 {[%clk 00:01:53]}
{[%emt 00:00:08]} g3 {[%clk 00:16:26]} {[%emt 00:00:08]} 41. b8=Q {[%clk
00:02:13]} {[%emt 00:00:10]} Kh3 {[%clk 00:16:52]} {[%emt 00:00:04]} 42. Qc8+
{[%clk 00:27:54]} {[%emt 00:04:48]} Kg2 {[%clk 00:46:54]} {[%emt 00:00:29]} 43.
Qh8 {[%clk 00:27:22]} {[%emt 00:01:01]} Kf2 {[%clk 00:45:56]} {[%emt 00:01:29]}
44. Qxd4+ {[%clk 00:22:49]} {[%emt 00:05:04]} Kf1 {[%clk 00:46:24]} {[%emt
00:00:02]} 45. Qd1+ {[%clk 00:22:57]} {[%emt 00:00:20]} Kf2 {[%clk 00:46:51]}
{[%emt 00:00:03]} 46. Qxh5 {[%clk 00:23:04]} {[%emt 00:00:23]} 1-0

[Event "NJSK 2021 Jeugd B"]
[Site "Almelo, Netherlands"]
[Date "2021.08.01"]
[Round "1.4"]
[White "Zubair, Saad"]
[Black "Achuthan, Dylan"]
[Result "0-1"]
[TimeControl "90min/40moves + 30min + 30sec/move"]
[WhiteElo "1645"]
[BlackElo "1888"]

1. d4 {[%clk 01:30:57]} {[%emt 00:00:03]} Nf6 {[%clk 01:30:49]} {[%emt
00:00:11]} 2. c4 {[%clk 01:31:19]} {[%emt 00:00:08]} g6 {[%clk 01:31:15]}
{[%emt 00:00:04]} 3. Nc3 {[%clk 01:31:41]} {[%emt 00:00:08]} d5 {[%clk
01:29:18]} {[%emt 00:02:27]} 4. Bg5 {[%clk 01:27:52]} {[%emt 00:04:18]} Ne4
{[%clk 01:22:34]} {[%emt 00:07:14]} 5. Nxe4 {[%clk 01:09:52]} {[%emt 00:18:31]}
dxe4 {[%clk 01:22:33]} {[%emt 00:00:31]} 6. e3 c6 {[%clk 01:22:33]} 7. Qd2 Bg7
{[%clk 01:22:33]} 8. f4 c5 {[%clk 01:22:33]} 9. d5 b5 {[%clk 01:22:33]} 10.
cxb5 a6 {[%clk 01:22:33]} 11. Ne2 f5 {[%clk 01:22:33]} 12. Nc3 Qd6 {[%clk
01:22:33]} 13. Bc4 Nd7 {[%clk 01:22:33]} 14. Rd1 Nb6 {[%clk 01:22:33]} 15. b3
h6 {[%clk 01:22:33]} 16. Bh4 e5 {[%clk 01:22:33]} 17. Ne2 exf4 {[%clk
01:22:33]} 18. exf4 Nxc4 {[%clk 01:22:33]} 19. bxc4 axb5 {[%clk 01:22:33]} 20.
cxb5 Ra3 {[%clk 01:22:33]} 21. O-O Rd3 {[%clk 01:22:33]} 22. Qa5 O-O {[%clk
01:22:33]} 23. Bf2 Bb7 {[%clk 01:22:33]} 24. Rxd3 exd3 {[%clk 01:22:33]} 25.
Nc3 Ra8 {[%clk 01:22:33]} 26. Ne4 fxe4 {[%clk 01:22:33]} 27. Qd2 Qxd5 {[%clk
01:22:33]} 28. Qe3 Bd4 {[%clk 01:22:33]} 29. Qg3 Bxf2+ {[%clk 01:22:33]} 30.
Rxf2 Qf5 {[%clk 01:22:33]} 31. Qe3 Rd8 {[%clk 01:22:33]} 32. h3 Qd5 {[%clk
01:22:33]} 33. Qg3 Rd6 {[%clk 01:22:33]} 34. f5 d2 {[%clk 01:22:33]} 35. f6
d1=Q+ {[%clk 01:22:33]} 36. Kh2 Kf7 {[%clk 01:22:33]} 37. Qf4 g5 {[%clk
01:22:33]} 38. Qg3 Re6 {[%clk 01:22:33]} 39. Qc7+ Qd7 {[%clk 01:22:33]} 0-1

[Event "NJSK 2021 Jeugd B"]
[Site "Almelo, Netherlands"]
[Date "2021.08.01"]
[Round "1.5"]
[White "Yeh, Timo"]
[Black "Boeren, Jurriaan"]
[Result "1-0"]
[TimeControl "90min/40moves + 30min + 30sec/move"]
[WhiteElo "1819"]
[BlackElo "1614"]

1. d4 {[%clk 01:30:53]} {[%emt 00:00:07]} e6 {[%clk 01:30:32]} {[%emt
00:00:28]} 2. e4 {[%clk 01:31:15]} {[%emt 00:00:08]} d5 {[%clk 01:30:57]}
{[%emt 00:00:06]} 3. exd5 {[%clk 01:31:43]} {[%emt 00:00:01]} exd5 {[%clk
01:31:20]} {[%emt 00:00:08]} 4. Nf3 {[%clk 01:32:09]} {[%emt 00:00:04]} Bd6
{[%clk 01:31:42]} {[%emt 00:00:07]} 5. Bd3 {[%clk 01:32:35]} {[%emt 00:00:05]}
Ne7 {[%clk 01:31:20]} {[%emt 00:00:52]} 6. O-O {[%clk 01:32:56]} {[%emt
00:00:08]} O-O {[%clk 01:31:35]} {[%emt 00:00:16]} 7. Re1 {[%clk 01:31:22]}
{[%emt 00:02:04]} Nbc6 {[%clk 01:29:10]} {[%emt 00:02:54]} 8. c3 {[%clk
01:31:35]} {[%emt 00:00:17]} Bf5 {[%clk 01:29:08]} {[%emt 00:00:32]} 9. Bg5
{[%clk 01:30:50]} {[%emt 00:01:16]} f6 {[%clk 01:28:47]} {[%emt 00:00:51]} 10.
Bh4 {[%clk 01:30:38]} {[%emt 00:00:40]} Qd7 {[%clk 01:27:39]} {[%emt 00:01:40]}
11. Qc2 {[%clk 01:26:36]} {[%emt 00:04:32]} Rfe8 {[%clk 01:13:27]} {[%emt
00:14:42]} 12. Nbd2 {[%clk 01:26:45]} {[%emt 00:00:21]} Bxd3 {[%clk 01:11:57]}
{[%emt 00:02:00]} 13. Qxd3 {[%clk 01:27:11]} {[%emt 00:00:03]} Qf5 {[%clk
01:11:42]} {[%emt 00:00:46]} 14. Qb5 {[%clk 01:25:06]} {[%emt 00:02:34]} a6
{[%clk 01:10:20]} {[%emt 00:01:53]} 15. Qb3 {[%clk 01:25:02]} {[%emt 00:00:33]}
Kh8 16. Bg3 {[%clk 01:25:02]} Bxg3 17. hxg3 {[%clk 01:25:02]} b6 18. Nf1 {[%clk
01:25:02]} Na5 19. Qb4 {[%clk 01:25:02]} Nec6 20. Qa3 {[%clk 01:25:02]} Nc4 21.
Rxe8+ {[%clk 01:25:02]} Rxe8 22. Qxa6 {[%clk 01:25:02]} Nxb2 23. Qb5 {[%clk
01:25:02]} Nd3 24. Qxc6 {[%clk 01:25:02]} 1-0

[Event "NJSK 2021 Jeugd B"]
[Site "Almelo, Netherlands"]
[Date "2021.08.01"]
[Round "1.6"]
[White "Wierenga, Jael"]
[Black "Aarts, Joaquin"]
[Result "1/2-1/2"]
[TimeControl "90min/40moves + 30min + 30sec/move"]
[WhiteElo "1565"]
[BlackElo "1736"]

1. d4 {[%clk 01:30:58]} {[%emt 00:00:02]} Nf6 {[%clk 01:30:49]} {[%emt
00:00:11]} 2. Bf4 {[%clk 01:31:23]} {[%emt 00:00:05]} e6 {[%clk 01:31:04]}
{[%emt 00:00:16]} 3. e3 {[%clk 01:31:45]} {[%emt 00:00:07]} b6 {[%clk
01:31:20]} {[%emt 00:00:14]} 4. Nd2 {[%clk 01:31:57]} {[%emt 00:00:19]} Bb7
{[%clk 01:31:21]} {[%emt 00:00:29]} 5. Ngf3 {[%clk 01:32:14]} {[%emt 00:00:13]}
c5 {[%clk 01:29:04]} {[%emt 00:02:46]} 6. Nc4 {[%clk 01:31:44]} {[%emt
00:01:01]} d5 {[%clk 01:23:24]} {[%emt 00:06:10]} 7. Nce5 {[%clk 01:32:11]}
{[%emt 00:00:02]} a6 {[%clk 01:20:57]} {[%emt 00:02:58]} 8. Ng5 {[%clk
01:32:22]} {[%emt 00:00:18]} Rg8 {[%clk 01:16:48]} {[%emt 00:04:39]} 9. Ngxf7
{[%clk 01:27:44]} {[%emt 00:05:09]} Qc8 {[%clk 01:16:41]} {[%emt 00:00:37]} 10.
Ng5 {[%clk 01:19:48]} {[%emt 00:08:25]} h6 {[%clk 01:14:31]} {[%emt 00:08:40]}
11. Ngf3 {[%clk 01:14:16]} {[%emt 00:00:03]} g5 {[%clk 01:14:53]} {[%emt
00:00:07]} 12. Bg3 {[%clk 01:14:40]} {[%emt 00:00:06]} Bd6 {[%clk 01:11:38]}
{[%emt 00:03:46]} 13. Bd3 {[%clk 01:12:49]} {[%emt 00:02:21]} Nc6 {[%clk
01:03:24]} {[%emt 00:08:44]} 14. h3 {[%clk 01:04:49]} {[%emt 00:08:29]} Qc7
{[%clk 01:02:18]} {[%emt 00:01:36]} 15. c3 c4 {[%clk 01:02:18]} 16. Bc2 O-O-O
{[%clk 01:02:18]} 17. Rb1 Ne4 {[%clk 01:02:18]} 18. Bxe4 dxe4 {[%clk 01:02:18]}
19. Nxc6 Bxc6 {[%clk 01:02:18]} 20. Bxd6 Qxd6 {[%clk 01:02:18]} 21. Ne5 Qd5
{[%clk 01:02:18]} 22. b3 cxb3 {[%clk 01:02:18]} 23. Qxb3 b5 {[%clk 01:02:18]}
24. Qxd5 Bxd5 {[%clk 01:02:18]} 25. Rb2 Rg7 {[%clk 01:02:18]} 26. O-O Rdg8
{[%clk 01:02:18]} 27. g3 Rc7 {[%clk 01:02:18]} 28. Rc1 Rf8 {[%clk 01:02:18]} 29.
Rbc2 Bc4 {[%clk 01:02:18]} 30. Kg2 Kb7 {[%clk 01:02:18]} 31. Rb2 Ka7 {[%clk
01:02:18]} 32. a3 Bd5 {[%clk 01:02:18]} 33. a4 bxa4 {[%clk 01:02:18]} 34. c4
Rfc8 {[%clk 01:02:18]} 35. Rb4 a3 {[%clk 01:02:18]} 36. Ra4 Bxc4 {[%clk
01:02:18]} 37. Rxa3 Bb5 {[%clk 01:02:18]} 38. Rb1 Rb7 {[%clk 01:02:18]} 39. Ng4
Rh8 {[%clk 01:02:18]} 40. Rba1 Rc7 {[%clk 01:02:18]} 41. Ra5 Kb7 {[%clk
01:02:18]} 42. Rb1 Rc2 {[%clk 01:02:18]} 43. Nf6 Rf8 {[%clk 01:02:18]} 44. Nxe4
Kc7 {[%clk 01:02:18]} 45. Kg1 Bd3 {[%clk 01:02:18]} 46. Nc5 Rfxf2 {[%clk
01:02:18]} 47. Nxd3 Rg2+ {[%clk 01:02:18]} 48. Kf1 Rh2 {[%clk 01:02:18]} 49.
Kg1 Rhg2+ {[%clk 01:02:18]} 1/2-1/2

[Event "NJSK 2021 Jeugd B"]
[Site "Almelo, Netherlands"]
[Date "2021.08.01"]
[Round "1.7"]
[White "Van Kuijk, Vadim"]
[Black "Franke, Daniel"]
[Result "1-0"]
[TimeControl "90min/40moves + 30min + 30sec/move"]
[WhiteElo "1722"]
[BlackElo "1554"]

1. e4 {[%clk 01:30:55]} {[%emt 00:00:05]} e5 {[%clk 01:30:56]} {[%emt
00:00:06]} 2. Nc3 {[%clk 01:31:13]} {[%emt 00:00:11]} Nf6 {[%clk 01:31:08]}
{[%emt 00:00:18]} 3. f4 {[%clk 01:31:36]} {[%emt 00:00:06]} d6 {[%clk
01:30:23]} {[%emt 00:01:16]} 4. Nf3 {[%clk 01:31:11]} {[%emt 00:00:56]} Nc6
{[%clk 01:30:15]} {[%emt 00:00:38]} 5. Bc4 {[%clk 01:30:41]} {[%emt 00:00:59]}
Bg4 {[%clk 01:29:06]} {[%emt 00:01:39]} 6. d3 {[%clk 01:24:20]} {[%emt
00:06:50]} exf4 {[%clk 01:21:26]} {[%emt 00:08:11]} 7. Bxf4 {[%clk 01:21:19]}
{[%emt 00:03:30]} Qd7 {[%clk 01:15:37]} {[%emt 00:06:20]} 8. h3 {[%clk
01:19:46]} {[%emt 00:02:02]} Bxf3 {[%clk 01:06:50]} {[%emt 00:09:52]} 9. Qxf3
{[%clk 01:19:22]} Ne5 {[%clk 01:03:52]} {[%emt 00:10:45]} 10. Qe3 {[%clk
01:04:03]} {[%emt 00:08:52]} Be7 {[%clk 00:46:19]} {[%emt 00:18:03]} 11. Bxe5
{[%clk 00:51:06]} {[%emt 00:13:26]} dxe5 {[%clk 00:46:25]} {[%emt 00:00:25]} 12.
Qg3 {[%clk 00:48:05]} {[%emt 00:03:31]} Qd4 {[%clk 00:20:26]} {[%emt 00:26:28]}
13. Qxg7 {[%clk 00:31:01]} {[%emt 00:17:33]} Qe3+ {[%clk 00:20:28]} {[%emt
00:00:29]} 14. Ne2 {[%clk 00:31:04]} {[%emt 00:00:27]} Rf8 {[%clk 00:19:36]}
{[%emt 00:01:22]} 15. Rf1 {[%clk 00:29:00]} Qb6 {[%clk 00:19:36]} 16. O-O-O
{[%clk 00:29:00]} O-O-O {[%clk 00:19:36]} 17. Nc3 {[%clk 00:29:00]} 1-0